bitfinex/quotes_ETHUSD_20250123
["timestamp","ask_amount","ask_price","bid_price","bid_amount"]
[1737669270055,3.08499,3241.5,3240.8,3.08561]
[1737669270259,3.08499,3241.5,3240.8,3.84001]
[1737669270465,3.08499,3241.5,3240.9,0.04167424]
[1737669270813,3.08546,3241.0,3240.9,0.04167424]
[1737669271096,3.08546,3241.0,3240.6,3.0]
[1737669271245,3.08546,3241.0,3240.9,0.04187206]
[1737669271542,3.08527,3241.2,3240.5,0.7544]
[1737669271746,3.08527,3241.2,3240.5,3.84033]
[1737669272048,3.08544,3241.1,3240.6,3.04211232]
[1737669272245,0.314079,3241.5,3240.6,0.04211232]
[1737669272441,3.08575,3240.7,3240.6,0.04211232]
[1737669272645,3.08575,3240.7,3240.2,0.7544]
[1737669272843,3.08563,3240.9,3240.3,3.0]
[1737669273066,3.08563,3240.9,3240.4,0.684061]
[1737669273487,3.08575,3240.7,3240.5,0.04217248]
[1737669274187,3.08567,3240.8,3240.5,0.04217248]
[1737669274383,3.08563,3240.9,3240.5,0.04217248]
[1737669274683,3.08536,3241.2,3240.5,0.04217248]
[1737669274984,3.08554,3241.0,3240.5,0.04217248]
[1737669275186,3.08536,3241.2,3240.6,3.0]
[1737669275384,3.08536,3241.2,3240.6,3.84626]
[1737669275577,3.08536,3241.2,3240.7,0.04244723]
[1737669276405,0.0558,3241.7,3240.7,0.04244723]
[1737669276406,3.08547,3241.0,3240.7,0.04244723]
[1737669276804,3.08572,3240.8,3240.4,0.684061]
[1737669277216,3.08586,3240.6,3240.3,0.7605]
[1737669277404,3.08586,3240.6,3239.9,0.7605]
[1737669277604,3.08619,3240.3,3239.9,0.7605]
[1737669278031,3.08633,3240.1,3239.9,0.7605]
[1737669278435,6.17239,3240.3,3239.9,0.7605]
[1737669278623,3.14177,3240.5,3239.9,0.7605]
[1737669278809,3.08597,3240.5,3240.0,3.0]
[1737669279210,3.08578,3240.7,3240.0,0.993347]
[1737669279440,3.08578,3240.7,3240.2,3.0]
[1737669280924,3.08559,3240.9,3240.4,3.0]
[1737669281240,3.08559,3240.9,3240.5,0.7605]
[1737669281403,3.08538,3241.1,3240.5,0.7605]
[1737669281603,3.0852,3241.3,3240.7,6.08569]
[1737669283545,3.08537,3241.1,3240.6,3.37605]
[1737669284216,3.08537,3241.1,3240.6,6.46189]
[1737669284539,3.08537,3241.1,3240.6,3.37605]
[1737669284749,3.0852,3241.3,3240.7,3.08574]
[1737669284944,3.08563,3240.9,3240.5,0.7605]
[1737669285558,3.08576,3240.7,3240.5,0.7605]
[1737669285770,3.0858,3240.7,3240.1,3.7886]
[1737669286116,3.08585,3240.6,3240.1,3.7886]
[1737669287615,3.08585,3240.6,3240.1,6.87491]
[1737669288557,0.0558,3241.2,3240.1,4.784726]
[1737669288853,3.08559,3240.9,3240.2,3.08614]
[1737669289213,3.08559,3240.9,3240.3,3.08613]
[1737669289418,3.08537,3241.1,3240.4,3.0]
[1737669289816,3.08537,3241.1,3240.5,0.04200326]
[1737669290343,3.08537,3241.1,3240.5,0.65481559]
[1737669290557,3.08537,3241.1,3240.5,3.74065559]
[1737669292239,3.0852,3241.3,3240.7,3.0]
[1737669292440,3.0852,3241.3,3240.7,6.08574]
[1737669292622,3.0852,3241.3,3240.8,0.04134218]
[1737669293147,3.0852,3241.3,3240.7,7.15031956]
[1737669293348,3.0852,3241.3,3240.9,0.041276]
[1737669293530,3.08512,3241.4,3240.9,3.0]
[1737669293724,3.08518,3241.3,3241.0,0.04120981]
[1737669293931,3.08518,3241.3,3240.7,4.15030956]
[1737669294135,3.08518,3241.3,3241.1,0.04114363]
[1737669294532,3.08518,3241.3,3240.8,0.79697096]
[1737669294743,3.08518,3241.3,3241.2,0.04100506]
[1737669294964,3.08518,3241.3,3240.8,0.79697096]
[1737669295158,3.08518,3241.3,3241.2,0.04100506]
[1737669295332,0.0558,3241.9,3241.2,0.8193]
[1737669295534,3.08452,3242.0,3241.4,6.08505]
[1737669295744,3.08452,3242.0,3241.2,0.86012815]
[1737669295745,3.08452,3242.0,3241.3,0.04137633]
[1737669295945,3.08471,3241.8,3241.5,0.04124397]
[1737669296145,3.08471,3241.8,3241.2,3.90456]
[1737669296370,3.08471,3241.8,3241.6,0.04106062]
[1737669296570,3.08471,3241.8,3241.2,3.90456]
[1737669296770,3.08471,3241.8,3241.7,0.04042227]
[1737669296968,3.08471,3241.8,3241.2,4.903559]
[1737669297170,3.08471,3241.8,3241.7,0.04042227]
[1737669297345,3.08471,3241.8,3241.2,4.903559]
[1737669297679,0.0558,3242.2,3241.2,0.8193]
[1737669297680,3.08505,3241.5,3241.2,0.8193]
[1737669298867,3.08463,3241.9,3241.2,0.8193]
[1737669299072,3.08489,3241.6,3241.2,0.8193]
[1737669299863,3.08515,3241.4,3240.8,0.8283]
[1737669300061,3.08534,3241.2,3240.8,0.8283]
[1737669300264,0.308534,3241.2,3240.4,0.8283]
[1737669300463,0.0558,3241.1,3240.4,0.8283]
[1737669300971,3.08607,3240.4,3239.7,3.08667]
[1737669301184,3.08625,3240.2,3239.7,0.8283]
[1737669302169,3.08625,3240.2,3239.7,3.8283]
[1737669302745,3.08625,3240.2,3239.7,0.8283]
[1737669302949,3.08639,3240.1,3239.7,0.8283]
[1737669303282,3.0862,3240.3,3239.7,3.8283]
[1737669303465,3.0862,3240.3,3239.7,6.91499]
[1737669303780,3.08606,3240.4,3239.7,3.8283]
[1737669304172,3.08613,3240.3,3239.7,3.8283]
[1737669304374,3.08613,3240.3,3239.8,0.04106463]
[1737669304567,3.08613,3240.3,3239.7,3.8283]
[1737669304883,3.0863,3240.2,3239.9,0.04100444]
[1737669305088,3.08651,3239.9,3239.8,0.04107068]
[1737669305259,3.08641,3240.0,3239.3,0.7873]
[1737669305459,3.08667,3239.8,3239.3,0.7873]
[1737669305661,3.08667,3239.8,3239.4,0.04137801]
[1737669305980,3.08689,3239.5,3239.4,0.04137801]
[1737669306214,3.08689,3239.5,3238.5,3.08782]
[1737669306215,0.0558,3239.5,3238.5,0.8263]
[1737669306479,3.08732,3239.1,3238.5,0.8263]
[1737669306682,3.08664,3239.8,3238.5,0.8263]
[1737669306892,3.08643,3240.0,3239.5,3.0]
[1737669307271,3.08602,3240.5,3239.9,3.0]
[1737669307482,0.0558,3240.9,3240.0,0.04123544]
[1737669307870,3.08584,3240.6,3239.8,6.83944]
[1737669308257,3.08584,3240.6,3239.9,0.0412948]
[1737669308491,3.08584,3240.6,3239.9,3.1277948]
[1737669308868,3.08568,3240.8,3240.1,3.0]
[1737669309067,3.08585,3240.6,3240.0,3.0]
[1737669309387,3.08585,3240.6,3240.1,0.04097625]
[1737669309765,3.08568,3240.8,3240.2,3.08622]
[1737669309969,3.08568,3240.8,3240.2,3.12704045]
[1737669310414,3.08568,3240.8,3240.2,0.04082045]
[1737669310615,3.08579,3240.7,3240.2,0.04082045]
[1737669310777,3.08579,3240.7,3240.0,6.08641]
[1737669310975,3.08579,3240.7,3240.3,0.04075421]
[1737669311177,3.08589,3240.6,3239.8,3.83948]
[1737669311371,3.0861,3240.4,3239.9,3.0]
[1737669312285,3.08566,3240.8,3240.0,3.08641]
[1737669312494,3.08576,3240.7,3240.1,3.0]
[1737669312908,3.08576,3240.7,3240.1,3.08631]
[1737669314184,3.08538,3241.1,3240.4,3.0]
[1737669314392,3.08538,3241.1,3240.4,3.7881]
[1737669314598,3.08525,3241.3,3240.6,3.08584]
[1737669315001,3.08528,3241.2,3240.5,3.0]
[1737669315200,3.08528,3241.2,3240.5,6.08592]
[1737669315407,3.08531,3241.2,3240.6,3.08584]
[1737669315703,3.08537,3241.1,3240.5,3.0]
[1737669315903,3.08537,3241.1,3240.5,6.08592]
[1737669316300,3.08537,3241.1,3240.5,3.996005]
[1737669316492,3.08537,3241.1,3240.5,6.08593]
[1737669317329,3.08529,3241.2,3240.6,3.08582]
[1737669317827,3.14082,3241.5,3240.5,3.0]
[1737669317983,3.08514,3241.4,3240.8,3.08564]
[1737669318180,3.08528,3241.2,3240.6,3.0]
[1737669319123,3.08509,3241.4,3240.6,3.0]
[1737669319285,3.08528,3241.2,3240.6,6.08583]
[1737669319486,6.17025,3241.4,3240.7,0.04058568]
[1737669319688,3.08509,3241.4,3240.7,0.04058568]
[1737669320007,3.0852,3241.3,3240.7,0.04058568]
[1737669321099,3.08472,3241.8,3241.0,3.0]
[1737669321294,6.16911,3242.0,3241.2,3.08527]
[1737669321495,3.08451,3242.0,3241.3,3.08517]
[1737669321693,3.08462,3241.9,3241.3,3.12460921]
[1737669322019,3.08452,3242.0,3241.5,3.0]
[1737669322379,0.0558,3242.2,3241.6,0.03923988]
[1737669322580,3.08457,3242.0,3241.4,3.0]
[1737669322783,3.08457,3242.0,3241.7,0.0393819]
[1737669323012,3.08457,3242.0,3241.4,3.0]
[1737669323223,3.08461,3241.9,3241.8,0.03930967]
[1737669323393,3.08461,3241.9,3241.1,3.86685]
[1737669323394,3.08461,3241.9,3241.1,3.86684]
[1737669323601,3.08461,3241.9,3241.8,0.03930967]
[1737669323787,3.08475,3241.8,3241.2,3.0]
[1737669324119,0.0558,3242.7,3241.4,3.0]
[1737669324318,3.0842,3242.4,3241.8,3.0]
[1737669324616,3.08452,3242.0,3241.5,0.7534]
[1737669324818,3.08476,3241.8,3241.5,0.7534]
[1737669324979,0.0558,3242.0,3240.9,0.7534]
[1737669325183,3.08505,3241.5,3240.9,0.7534]
[1737669325488,3.08525,3241.3,3240.9,0.7534]
[1737669326297,3.0854,3241.1,3240.6,3.7748]
[1737669326520,3.08549,3241.0,3240.6,0.7748]
[1737669327424,3.14101,3241.3,3240.6,0.7748]
[1737669327719,3.08531,3241.2,3240.6,6.86064]
[1737669327915,0.0558,3242.0,3241.2,0.8057]
[1737669328119,0.0558,3242.0,3241.2,3.89094]
[1737669328120,3.08471,3241.8,3241.2,3.89094]
[1737669328488,3.08466,3241.9,3241.2,0.8057]
[1737669328689,3.08479,3241.8,3241.2,3.8057]
[1737669328889,3.08466,3241.9,3241.2,3.8057]
[1737669329190,3.08466,3241.9,3241.2,0.8057]
[1737669329417,3.0847,3241.8,3241.0,3.0]
[1737669329610,3.08534,3241.2,3240.5,0.7918]
[1737669329809,3.08553,3241.0,3240.5,0.7918]
[1737669330014,3.08534,3241.2,3240.5,3.7918]
[1737669330219,3.08534,3241.2,3240.7,3.0]
[1737669330524,3.0851,3241.4,3240.7,6.08574]
[1737669330736,3.0851,3241.4,3240.5,6.87768]
[1737669330904,3.08533,3241.2,3240.7,3.0]
[1737669331292,3.0851,3241.4,3240.7,6.08573]
[1737669331625,3.08518,3241.3,3240.7,6.08573]
[1737669331828,3.0851,3241.4,3240.9,3.0]
[1737669331989,3.45589745,3242.2,3241.2,3.0]
[1737669331990,3.08474,3241.8,3241.2,3.0]
[1737669332324,3.08489,3241.6,3241.0,6.08544]
[1737669332733,3.08474,3241.8,3241.2,3.0]
[1737669333303,3.08482,3241.7,3241.2,3.0]
[1737669333733,3.08474,3241.8,3240.8,0.7946]
[1737669334039,3.08474,3241.8,3241.3,0.8312]
[1737669334442,3.08474,3241.8,3241.4,0.0393932]
[1737669335231,3.08452,3242.0,3241.4,0.0393932]
[1737669335635,3.08452,3242.0,3241.3,6.91636]
[1737669335865,0.62043344,3242.7,3242.0,0.7878]
[1737669336006,3.08426,3242.3,3241.8,3.0]
[1737669336211,3.08426,3242.3,3242.1,0.03835791]
[1737669336514,3.08426,3242.3,3242.2,0.03829178]
[1737669336735,3.08426,3242.3,3241.8,3.0]
[1737669337033,3.08426,3242.3,3242.2,0.03829178]
[1737669337236,3.08426,3242.3,3241.8,6.08469]
[1737669337415,3.08426,3242.3,3242.2,0.03829178]
[1737669337611,3.08426,3242.3,3241.8,3.0]
[1737669337817,3.08426,3242.3,3242.2,0.03829178]
[1737669338029,3.08426,3242.3,3241.8,6.08469]
[1737669338357,3.08426,3242.3,3241.9,0.916942]
[1737669338509,3.08426,3242.3,3241.9,0.95543218]
[1737669339047,3.08406,3242.5,3242.0,3.0]
[1737669339251,3.08414,3242.4,3242.0,3.0]
[1737669339458,3.08414,3242.4,3242.1,0.03835791]
[1737669339805,3.08401,3242.6,3242.1,0.03835791]
[1737669340317,3.08404,3242.5,3242.1,0.03835791]
[1737669341054,1.00358372,3242.8,3242.2,0.8004]
[1737669341260,1.00358372,3242.8,3242.1,0.03835791]
[1737669341405,3.08457,3242.0,3241.5,0.8177]
[1737669341907,0.0558,3242.6,3241.5,0.8177]
[1737669342105,3.08388,3242.7,3242.1,3.84122]
[1737669342301,4.08737372,3242.8,3242.2,3.768372]
[1737669342530,1.00358372,3242.8,3242.2,0.684122]
[1737669342742,3.08318,3243.4,3242.8,3.0]
[1737669342946,3.08318,3243.4,3242.8,3.90744]
[1737669343448,3.08329,3243.3,3242.8,0.8237]
[1737669343826,3.13881,3243.6,3242.8,3.90736]
[1737669344244,3.08319,3243.4,3242.8,3.90736]
[1737669344551,3.08282,3243.8,3243.0,6.08355]
[1737669344870,3.08271,3243.9,3243.2,3.08331]
[1737669345041,3.13842,3244.0,3243.0,3.08355]
[1737669345042,0.0558,3244.0,3243.1,3.0]
[1737669345231,0.0558,3244.0,3242.1,35.0]
[1737669345232,3.08356,3243.0,3242.3,0.7787]
[1737669345439,3.08356,3243.0,3242.4,3.5387762]
[1737669345680,3.08356,3243.0,3242.5,3.0]
[1737669346565,3.08345,3243.2,3242.5,3.0]
[1737669346759,3.08345,3243.2,3242.4,3.74224727]
[1737669346760,3.08357,3243.0,3242.4,3.74224727]
[1737669347066,3.08357,3243.0,3242.4,3.82632727]
[1737669347264,3.08345,3243.2,3242.5,0.46050273]
[1737669347476,3.08353,3243.1,3242.5,0.46050273]
[1737669347635,3.08353,3243.1,3242.5,3.46050273]
[1737669348331,3.08358,3243.0,3242.5,3.46050273]
[1737669348731,3.08348,3243.1,3242.5,6.54451273]
[1737669348977,3.08348,3243.1,3242.6,0.96286227]
[1737669349335,3.08348,3243.1,3242.7,0.03631527]
[1737669349772,3.08359,3243.0,3242.5,3.0]
[1737669350072,3.08359,3243.0,3242.8,0.03622853]
[1737669350378,3.08359,3243.0,3242.9,0.03616241]
[1737669350535,3.08359,3243.0,3242.5,3.08403]
[1737669350737,3.08345,3243.2,3242.9,0.03616241]
[1737669350939,3.08356,3243.0,3242.5,3.0]
[1737669351159,6.16688,3243.2,3243.0,0.03609629]
[1737669351384,6.16688,3243.2,3242.6,3.0]
[1737669351592,6.16688,3243.2,3243.1,0.03600874]
[1737669351903,3.08353,3243.1,3242.6,3.0]
[1737669352208,3.08358,3243.0,3242.4,6.08408]
[1737669352385,3.08358,3243.0,3242.7,0.03627322]
[1737669352579,3.08358,3243.0,3242.4,6.08408]
[1737669352983,3.08358,3243.0,3242.5,0.03640549]
[1737669354380,0.55,3243.3,3242.5,0.03640549]
[1737669354690,3.08424,3242.3,3242.0,0.8164]
[1737669354889,6.16817,3242.5,3242.0,0.8164]
[1737669355101,3.08407,3242.5,3242.0,0.8164]
[1737669355603,3.08414,3242.4,3242.0,0.8164]
[1737669355783,3.08424,3242.3,3242.0,0.8164]
[1737669355982,3.08407,3242.5,3242.0,0.8164]
[1737669356382,3.084,3242.6,3242.0,0.8164]
[1737669356727,3.08367,3242.9,3242.0,1.19804]
[1737669356874,3.08384,3242.8,3242.2,3.08426]
[1737669358691,3.08385,3242.7,3242.3,3.0]
[1737669359829,3.08367,3242.9,3242.3,3.0]
[1737669360027,3.08374,3242.9,3242.3,3.0]
[1737669360760,0.0558,3243.2,3242.1,3.0]
[1737669360761,3.08346,3243.1,3242.1,3.0]
[1737669360969,3.08428,3242.3,3241.7,3.8287]
[1737669361462,3.08428,3242.3,3241.7,3.91346]
[1737669361869,3.08394,3242.6,3241.7,0.8287]
[1737669362161,3.08393,3242.7,3242.2,3.0]
[1737669362943,3.13964,3242.8,3242.2,3.0]
[1737669363127,3.13964,3242.8,3241.8,0.23008867]
[1737669363128,3.08414,3242.4,3241.8,0.23008867]
[1737669363330,3.08414,3242.4,3241.9,0.41435087]
[1737669363331,3.08416,3242.4,3241.9,0.41435087]
[1737669364279,0.55,3242.7,3241.8,0.23008867]
[1737669364488,3.08459,3242.0,3241.8,0.23008867]
[1737669364997,3.08449,3242.1,3241.6,3.0]
[1737669365331,3.08436,3242.2,3241.5,3.0]
[1737669365332,3.08452,3242.0,3241.5,3.0]
[1737669365884,6.16875,3242.2,3241.5,6.08498]
[1737669366067,3.08453,3242.0,3241.5,3.0]
[1737669366436,3.08453,3242.0,3241.4,0.8194]
[1737669366602,3.08504,3241.5,3241.1,0.819]
[1737669366898,3.08504,3241.5,3240.8,0.819]
[1737669367058,0.0558,3241.6,3240.8,0.819]
[1737669367239,0.37143807,3242.4,3240.9,3.08547]
[1737669367240,3.08499,3241.5,3240.9,3.08547]
[1737669367444,3.08499,3241.5,3240.9,3.475917]
[1737669367645,3.08521,3241.3,3240.8,3.819]
[1737669367843,3.08521,3241.3,3240.8,0.819]
[1737669367844,3.08538,3241.1,3240.8,0.819]
[1737669368282,3.08521,3241.3,3240.8,0.819]
[1737669368499,3.08521,3241.3,3240.8,3.90464]
[1737669368680,3.08482,3241.7,3241.0,3.08546]
[1737669368844,3.08463,3241.9,3241.2,3.08519]
[1737669369050,3.08496,3241.6,3241.1,3.7553]
[1737669369399,3.08514,3241.4,3241.1,0.7553]
[1737669369582,3.08514,3241.4,3240.9,3.0]
[1737669370730,3.08514,3241.4,3240.9,3.23058529]
[1737669371294,0.0558,3241.6,3240.9,0.23058529]
[1737669371490,3.08508,3241.4,3240.9,0.23058529]
[1737669371794,3.08508,3241.4,3240.9,3.0]
[1737669372101,3.08493,3241.6,3241.0,0.03865652]
[1737669373089,3.08493,3241.6,3241.1,3.0]
[1737669373390,3.08501,3241.5,3241.2,0.03846567]
[1737669373590,3.08501,3241.5,3240.9,3.684088]
[1737669373591,3.08501,3241.5,3240.9,3.0]
[1737669373928,3.08501,3241.5,3241.3,0.0383926]
[1737669374144,3.08545,3241.1,3240.8,0.7553]
[1737669375150,3.08518,3241.3,3240.8,0.7553]
[1737669375642,3.085,3241.5,3240.9,3.0]
[1737669375851,3.08512,3241.4,3240.9,3.0]
[1737669376015,3.0852,3241.3,3240.9,3.684093]
[1737669376226,3.08528,3241.2,3240.9,3.684093]
[1737669376551,3.0852,3241.3,3240.9,3.684093]
[1737669377139,0.55,3241.8,3240.8,0.7553]
[1737669377337,3.08553,3241.0,3240.8,0.7553]
[1737669378309,3.0853,3241.2,3240.8,0.7553]
[1737669378968,3.08499,3241.5,3240.8,0.7553]
[1737669379263,3.08556,3240.9,3240.8,0.7553]
[1737669380611,0.0558,3241.3,3240.5,0.7848]
[1737669380813,3.08581,3240.7,3240.5,0.7848]
[1737669381051,3.08584,3240.6,3240.5,0.7848]
[1737669381557,3.08584,3240.6,3239.9,0.62881825]
[1737669381558,3.08609,3240.4,3240.0,0.8111]
[1737669381724,3.08609,3240.4,3240.0,1.25509183]
[1737669382354,3.08586,3240.6,3240.0,1.25509183]
[1737669382556,3.08539,3241.1,3240.4,3.08597]
[1737669382758,3.08554,3241.0,3240.6,0.7823]
[1737669385979,3.08528,3241.2,3240.6,0.7823]
[1737669386184,3.08493,3241.6,3241.0,3.0]
[1737669386384,3.08509,3241.4,3241.1,1.385555]
[1737669386528,3.08509,3241.4,3241.1,0.777]
[1737669387777,3.08493,3241.6,3241.1,0.777]
[1737669388082,3.08499,3241.5,3241.1,0.777]
[1737669388292,3.08527,3241.2,3241.1,0.777]
[1737669388575,3.08584,3240.6,3240.3,0.813]
[1737669388777,3.08566,3240.8,3240.3,0.813]
[1737669389043,0.0558,3241.4,3240.3,0.813]
[1737669389044,3.08558,3240.9,3240.3,0.813]
[1737669389766,3.0853,3241.2,3240.4,3.08602]
[1737669390000,3.08553,3241.0,3240.5,3.0]
[1737669390201,3.08553,3241.0,3240.5,3.689902]
[1737669390572,3.08554,3241.0,3240.5,3.689902]
[1737669390766,3.08556,3240.9,3240.5,3.689902]
[1737669390999,3.08567,3240.8,3240.5,0.689902]
[1737669391357,3.08554,3241.0,3240.5,0.689902]
[1737669391556,3.08558,3240.9,3240.5,0.689902]
[1737669391760,3.08567,3240.8,3240.5,0.689902]
[1737669392059,3.08567,3240.8,3240.3,0.813]
[1737669392467,3.08567,3240.8,3240.3,3.813]
[1737669392897,3.08554,3241.0,3240.3,6.89909]
[1737669393607,3.08509,3241.4,3240.7,3.0]
[1737669393772,3.0853,3241.2,3240.7,3.0]
[1737669393975,3.0853,3241.2,3240.7,3.687848]
[1737669394286,3.08488,3241.7,3241.0,3.8041]
[1737669394470,3.08467,3241.9,3241.2,3.0]
[1737669394670,3.08494,3241.6,3241.2,3.0]
[1737669394877,3.08494,3241.6,3241.3,0.03857427]
[1737669395094,3.08494,3241.6,3241.3,0.4228417]
[1737669395310,3.08494,3241.6,3241.3,0.38426743]
[1737669395478,3.08494,3241.6,3241.4,0.03850809]
[1737669396208,3.08519,3241.3,3240.8,0.7816]
[1737669396535,3.08535,3241.2,3240.9,0.4469448]
[1737669396714,3.08546,3241.0,3240.8,0.7816]
[1737669397008,3.08556,3240.9,3240.8,0.7816]
[1737669397182,3.08556,3240.9,3240.3,0.8028]
[1737669397390,3.08556,3240.9,3240.3,1.4074411]
[1737669397600,3.08556,3240.9,3240.3,4.4074411]
[1737669397795,3.08568,3240.8,3240.4,0.74936211]
[1737669398014,3.08546,3241.0,3240.4,0.74936211]
[1737669398305,3.08575,3240.7,3240.4,0.74936211]
[1737669398508,3.08575,3240.7,3240.3,0.8028]
[1737669399077,3.0856,3240.9,3240.3,0.8028]
[1737669399289,3.08558,3240.9,3240.3,0.8028]
[1737669399984,3.08558,3240.9,3240.3,3.88886]
[1737669400407,3.08542,3241.1,3240.5,3.0]
[1737669400612,3.41420617,3242.0,3240.0,0.63124111]
[1737669400613,3.08432,3242.2,3241.3,3.08516]
[1737669400779,0.0558,3242.3,3241.5,0.811]
[1737669401279,0.0558,3242.3,3241.1,0.8061]
[1737669401480,2.89674629,3242.5,3241.1,0.8061]
[1737669401481,3.08474,3241.8,3241.1,0.8061]
[1737669401706,0.0558,3242.4,3241.1,0.8061]
[1737669401944,3.08471,3241.8,3241.2,0.389156]
[1737669402085,3.08481,3241.7,3241.2,0.389156]
[1737669402414,3.08471,3241.8,3241.2,0.389156]
[1737669402584,3.08456,3242.0,3241.3,3.08517]
[1737669403383,3.08461,3241.9,3241.3,3.08517]
[1737669403583,3.08461,3241.9,3241.1,3.8061]
[1737669403785,3.08461,3241.9,3241.2,0.689156]
[1737669404047,3.08461,3241.9,3241.3,3.0]
[1737669404216,3.08454,3242.0,3241.3,3.08515]
[1737669404787,3.08422,3242.4,3241.5,3.8112]
[1737669404983,0.0558,3242.8,3241.5,3.8112]
[1737669404984,3.08371,3242.9,3242.2,6.08424]
[1737669405218,3.08356,3243.0,3242.3,1.419624]
[1737669405515,3.08382,3242.8,3242.3,0.8112]
[1737669406917,3.08356,3243.0,3242.3,0.8112]
[1737669407118,1.05923339,3243.1,3242.3,0.8112]
[1737669407119,1.00343339,3243.1,3242.6,3.0]
[1737669407325,3.08341,3243.2,3242.6,3.0]
[1737669407622,3.0833,3243.3,3242.8,0.8115]
[1737669407835,0.0558,3243.7,3242.8,0.8115]
[1737669407836,3.0829,3243.7,3242.8,1.44294118]
[1737669408009,3.08278,3243.9,3243.3,0.8096]
[1737669408333,3.08215,3244.5,3243.4,3.0]
[1737669408515,3.08215,3244.5,3243.8,3.0]
[1737669408709,3.08204,3244.6,3243.9,0.8253]
[1737669408914,3.08251,3244.2,3243.9,0.86142061]
[1737669409116,3.08229,3244.4,3243.9,0.86142061]
[1737669409318,0.167039,3244.7,3244.2,3.0]
[1737669409524,0.167039,3244.7,3244.2,6.08241]
[1737669409839,3.248989,3244.7,3244.3,0.03564679]
[1737669410050,3.248989,3244.7,3244.1,3.0]
[1737669410207,0.167039,3244.7,3244.4,0.03537815]
[1737669410403,0.167039,3244.7,3244.5,0.7604]
[1737669410997,0.167039,3244.7,3244.6,0.03523573]
[1737669416258,0.167039,3244.7,3244.6,6.11727573]
[1737669416555,0.167039,3244.7,3244.6,3.03523573]
[1737669417218,0.167039,3244.7,3244.6,3.4147993]
[1737669417625,3.248979,3244.7,3244.6,0.03523573]
[1737669417853,3.248979,3244.7,3243.8,3.69055864]
[1737669417854,3.08238,3244.3,3243.8,0.7862]
[1737669418043,3.249009,3244.7,3243.8,3.7862]
[1737669418243,3.08205,3244.6,3244.0,3.08259]
[1737669418446,3.249009,3244.7,3243.8,6.86895]
[1737669418627,3.08217,3244.5,3243.9,0.995184]
[1737669419249,3.08217,3244.5,3244.0,3.0]
[1737669420171,3.08217,3244.5,3244.1,0.8177]
[1737669420467,3.249009,3244.7,3244.1,0.8177]
[1737669420651,3.08222,3244.5,3243.9,0.995184]
[1737669420958,3.08239,3244.3,3243.8,0.8177]
[1737669421158,3.08239,3244.3,3243.8,3.8177]
[1737669422563,3.0827,3243.9,3243.5,0.7554]
[1737669423668,3.08307,3243.6,3243.2,0.7554]
[1737669424130,3.08311,3243.5,3243.2,0.7554]
[1737669424332,3.08307,3243.6,3243.2,0.7554]
[1737669424571,3.08279,3243.9,3243.3,0.03335351]
[1737669424933,3.08294,3243.7,3243.3,0.03335351]
[1737669425371,3.08294,3243.7,3243.2,0.7554]
[1737669425682,3.08294,3243.7,3243.3,0.0338895]
[1737669425849,3.083,3243.6,3243.2,0.7554]
[1737669426196,3.083,3243.6,3243.4,0.0338234]
[1737669426472,3.083,3243.6,3243.3,0.0338895]
[1737669426648,3.083,3243.6,3243.2,0.7554]
[1737669426849,3.083,3243.6,3243.4,0.0338234]
[1737669427046,3.083,3243.6,3243.2,0.7554]
[1737669427366,3.083,3243.6,3243.5,0.0337573]
[1737669427573,3.083,3243.6,3243.2,0.7554]
[1737669427755,3.083,3243.6,3243.5,0.0337573]
[1737669427955,3.083,3243.6,3243.2,1.439296]
[1737669428450,3.083,3243.6,3243.3,0.03437297]
[1737669428652,3.083,3243.6,3243.2,0.7554]
[1737669428942,3.083,3243.6,3243.4,0.03430686]
[1737669429153,3.083,3243.6,3243.3,0.03437297]
[1737669429473,3.083,3243.6,3243.4,0.03430686]
[1737669429763,3.0828,3243.8,3243.2,0.7554]
[1737669429971,3.08296,3243.7,3243.5,0.03424076]
[1737669430154,3.08296,3243.7,3243.2,0.7554]
[1737669430331,3.08296,3243.7,3243.6,0.03417809]
[1737669430533,3.08296,3243.7,3243.2,0.7554]
[1737669430734,3.08296,3243.7,3243.6,0.03418495]
[1737669430968,3.08296,3243.7,3243.2,0.7554]
[1737669431177,3.08296,3243.7,3243.6,0.03418495]
[1737669431472,3.08303,3243.6,3243.2,0.7554]
[1737669431675,3.08318,3243.4,3242.9,0.7881]
[1737669431988,3.08356,3243.0,3242.5,0.7881]
[1737669432489,3.08349,3243.1,3242.6,3.0]
[1737669432689,5.97622488,3243.2,3242.5,0.7881]
[1737669432690,3.08356,3243.0,3242.5,0.7881]
[1737669432987,3.08331,3243.3,3242.6,0.37881]
[1737669433131,3.08309,3243.5,3242.9,0.8111]
[1737669433333,3.08309,3243.5,3243.0,3.0]
[1737669433581,3.08309,3243.5,3242.9,0.8111]
[1737669433582,3.08318,3243.4,3242.9,0.8111]
[1737669433750,3.08328,3243.3,3242.9,0.8111]
[1737669433949,3.08359,3243.0,3242.5,0.8111]
[1737669434275,2.89285488,3243.2,3242.5,0.8111]
[1737669434276,5.97628488,3243.2,3242.5,1.80905]
[1737669434468,3.0833,3243.3,3242.7,0.8111]
[1737669434683,3.08339,3243.2,3242.7,0.8111]
[1737669434842,3.0833,3243.3,3242.7,0.8111]
[1737669435036,3.08337,3243.2,3242.7,0.8111]
[1737669435676,3.08349,3243.1,3242.7,0.8111]
[1737669435878,3.08319,3243.4,3242.7,4.584453]
[1737669436775,2.89285488,3243.5,3242.9,3.0]